fUSD/lending_fUSD_20240122
["ID","MTS","AMOUNT","RATE_DAILY","PERIOD"]
[312493915,1705929954984,-712.95,0.00032934,2]
[312493916,1705929955005,-355.38,0.00033165,2]
[312493917,1705929955027,-798.63,0.00033432,2]
[312493918,1705929955047,-2222.78099228,0.00033444,2]
[312493923,1705930026124,-250.0,0.00033497,2]
[312493924,1705930026145,-472.54,0.00033516,2]
[312493925,1705930026168,-355.38,0.00033526,2]
[312493926,1705930026189,-161.01,0.00033682,15]
[312493927,1705930026209,-355.38,0.00033886,2]
[312493928,1705930026230,-241.78,0.00033944,2]
[312493929,1705930026250,-1187.41201967,0.00034,35]
[312493930,1705930040102,-205.36744459,0.0003383,2]
[312493931,1705930040122,-1512.58798033,0.00034,35]
[312493932,1705930040142,-500.0,0.00034245,2]
[312493933,1705930040161,-1000.0,0.00034246,4]
[312493934,1705930040186,-355.38,0.00034247,2]
[312493935,1705930040207,-185.2,0.00034487,2]
[312493936,1705930040226,-5020.67753495,0.00035,4]
[312493937,1705930040246,-155.0,0.00035499,2]
[312493938,1705930040265,-3033.0,0.000355,3]
[312493939,1705930040284,-163.87627281,0.000356,14]
[312493940,1705930040304,-13311.93764615,0.000356,3]
[312493967,1705930231625,-155.0,0.00034809,2]
[312493969,1705930231635,-1000.0,0.0003481,4]
[312493971,1705930231645,-226.37,0.00034811,2]
[312493972,1705930231655,-208.16934244,0.00035498,2]
[312493973,1705930231664,-3039.0,0.000355,3]
[312493974,1705930231673,-7720.59833753,0.000356,3]
[312493975,1705930231685,-3036.71475694,0.000356,3]
[312493976,1705930231802,-3209.68690553,0.000356,3]
[312493977,1705930231811,-1620.0,0.00035674,2]
[312493978,1705930231823,-400.0,0.00035677,2]
[312493979,1705930231833,-208.1693423,0.00035681,2]
[312493980,1705930231843,-170.0,0.00035805,2]
[312493981,1705930231853,-208.1693423,0.00035863,2]
[312493982,1705930231863,-172.0,0.00036,2]
[312493983,1705930231873,-208.1693423,0.00036046,2]
[312493984,1705930231882,-208.1693423,0.00036229,2]
[312493985,1705930231892,-208.1693423,0.00036411,2]
[312493986,1705930231903,-250.0,0.00036529,2]
[312493987,1705930231913,-193.44310589,0.00036578,6]
[312493988,1705930231922,-208.1693423,0.00036594,2]
[312493989,1705930231931,-161.01,0.00036627,15]
[312493990,1705930231941,-208.1693423,0.00036777,2]
[312493991,1705930231950,-172.06,0.000368,2]
[312493992,1705930231960,-208.1693423,0.00036959,2]
[312493993,1705930231970,-226.37,0.00037075,2]
[312493994,1705930231979,-208.1693423,0.00037142,2]
[312493995,1705930231988,-201.205508,0.00037362,2]
[312493996,1705930231999,-213.321367,0.00037362,2]
[312493997,1705930232009,-186.048237,0.00037362,2]
[312493998,1705930232019,-173.0,0.00037397,2]
[312493999,1705930232030,-5972.49578516,0.00037518,4]
[312494000,1705930232039,-286.83806,0.0003752,2]
[312494001,1705930232048,-2124.69521889,0.0003753,2]
[312494002,1705930232061,-4118.3,0.0003753,2]
[312494047,1705930237679,-500.0,0.00034808,2]
[312494049,1705930237689,-250.0,0.00035532,111]
[312494050,1705930237699,-131.84702337,0.0003753,2]
[312494052,1705930237709,-800.0,0.00037597,10]
[312494053,1705930237720,-711.6109,0.000376,2]
[312494054,1705930237730,-798.63,0.00037611,2]
[312494055,1705930237739,-500.0,0.00037613,120]
[312494056,1705930237749,-156.26192924,0.00037698,4]
[312494057,1705930237759,-1317.93249377,0.00037698,4]
[312494058,1705930237769,-10421.76127941,0.00037698,2]
[312494059,1705930237779,-156.57677682,0.00037698,4]
[312494060,1705930237789,-940.75258403,0.00037698,4]
[312494061,1705930237800,-229.5508507,0.00037698,2]
[312494062,1705930237810,-14339.28241804,0.00037698,4]
[312494063,1705930237822,-170.30905286,0.00037698,4]
[312494064,1705930237832,-321.75335411,0.00037698,4]
[312494065,1705930237843,-2934.28598299,0.00037699,4]
[312494066,1705930237853,-408.78,0.00037699,2]
[312494067,1705930237864,-408.78,0.00037699,2]
[312494068,1705930237874,-408.78,0.00037699,2]
[312494069,1705930237884,-408.78,0.00037699,2]
[312494070,1705930237894,-408.78,0.00037699,2]
[312494071,1705930237904,-408.78,0.00037699,2]
[312494072,1705930237915,-408.78,0.00037699,2]
[312494073,1705930237925,-503.91173672,0.000377,4]
[312494074,1705930237934,-4939.60562733,0.000377,2]
[312494075,1705930237947,-1578.3,0.000377,2]
[312494076,1705930237959,-4114.7,0.000377,2]
[312494077,1705930237979,-4896.45581765,0.000377,2]
[312494078,1705930238025,-91308.1058371,0.000377,2]
[312494568,1705930243401,-9735.39448552,0.000377,2]
[312494569,1705930243413,-12259.0885324,0.000377,2]
[312494570,1705930243423,-161.90565138,0.00037798,4]
[312494571,1705930243432,-177.24781032,0.00037799,4]
[312494572,1705930243442,-1326.824,0.000378,2]
[312494573,1705930243451,-6119.9644059,0.000378,2]
[312494574,1705930243655,-3275.29055232,0.000378,2]
[312494575,1705930243667,-10555.6398,0.000378,2]
[312494576,1705930243711,-50615.0944,0.000378,2]
[312494578,1705930243738,-617.45,0.000378,2]
[312494580,1705930243790,-45751.64294178,0.000378,2]
[312494581,1705930243800,-210.35018475,0.000378,10]
[312494582,1705930243810,-3034.45631838,0.00037889,10]
[312494583,1705930243820,-662.79622827,0.00037897,2]
[312494584,1705930243830,-408.78,0.00037898,2]
[312494585,1705930243840,-18138.28702159,0.00037899,2]
[312494586,1705930243862,-1009.36561679,0.00037899,2]
[312494602,1705930245738,-155.0,0.00037798,2]
[312494603,1705930245747,-5491.11420614,0.00037899,2]
[312494604,1705930245761,-8821.60242334,0.00037899,2]
[312494605,1705930245775,-5387.90658026,0.00037899,2]
[312494606,1705930245790,-16892.20380112,0.00037899,2]
[312494607,1705930245804,-28403.77052574,0.00037899,2]
[312494608,1705930245819,-1363.58210176,0.00037899,2]
[312494609,1705930245833,-641.1100006,0.00037899,2]
[312494610,1705930245852,-6188.14387636,0.00037899,2]
[312494611,1705930245886,-7662.9138463,0.00037899,2]
[312494612,1705930245896,-1905.22240202,0.000379,3]
[312494613,1705930245905,-150.0,0.00037995,2]
[312494614,1705930245915,-299.01,0.00037995,2]
[312494615,1705930245924,-351.24756955,0.00038,30]
[312494616,1705930245934,-150.0,0.00038079,2]
[312494617,1705930245943,-991.29342353,0.00038134,2]
[312494618,1705930245952,-537.63904529,0.00038391,2]
[312494619,1705930245962,-1000.0,0.00038439,30]
[312494620,1705930245971,-3034.45631838,0.00038472,10]
[312494621,1705930245980,-408.8,0.00038481,2]
[312494622,1705930245990,-49278.16467625,0.00038482,2]
[312494623,1705930246001,-40913.90667985,0.00038482,2]
[312494624,1705930246011,-1260.34340866,0.00038491,4]
[312494625,1705930246020,-8701.17828558,0.00038492,11]
[312494626,1705930246029,-24506.80921147,0.00038492,13]
[312494627,1705930246041,-48250.00599634,0.00038492,15]
[312494628,1705930246062,-7345.33843738,0.00038492,15]
[312494629,1705930246073,-8242.0,0.00038492,15]
[312494630,1705930246130,-1384.95508471,0.00038492,15]
[312494631,1705930246142,-854.73213679,0.00038492,15]
[312494632,1705930246163,-7654.23493818,0.00038492,15]
[312494870,1705931137111,-2086.9940251,0.00027295,14]
[312494878,1705931240118,-155.0,0.00027291,2]
[312494879,1705931240139,-233.38000799,0.00027292,2]
[312494880,1705931240161,-133.0222749,0.00027295,14]
[312494881,1705931240185,-172.71,0.00027397,2]
[312494882,1705931240206,-155.0,0.00033998,2]
[312494883,1705931240227,-12215.81350307,0.00033999,30]
[312494884,1705931240248,-500.0,0.00034,2]
[312494885,1705931240274,-1000.0,0.00034246,4]
[312494886,1705931240296,-172.71,0.00034247,2]
[312494887,1705931240324,-212.51,0.00034637,2]
[312494888,1705931240348,-151.1868567,0.00035432,2]
[312494889,1705931240369,-406.55,0.00035432,2]
[312494890,1705931240390,-155.0,0.000356,4]
[312494891,1705931240413,-1046.94931403,0.000356,4]
[312494892,1705931240435,-220.97958904,0.000356,4]
[312494893,1705931240456,-3758.38456397,0.000356,4]
[312494894,1705931243095,-6906.29330307,0.000356,4]
[312494895,1705931243119,-151.18685658,0.00035629,2]
[312494896,1705931243147,-151.18685658,0.00035827,2]
[312494897,1705931243172,-151.18685658,0.00036024,2]
[312494898,1705931243195,-151.18685658,0.00036222,2]
[312494899,1705931243217,-4648.03,0.00036254,2]
[312494900,1705931243239,-1241.01,0.00036264,2]
[312494901,1705931243260,-829.81,0.00036269,2]
[312494902,1705931243282,-250.0,0.00036346,2]
[312494903,1705931243304,-156.06,0.00036355,15]
[312494904,1705931243325,-244.63,0.0003637,2]
[312494905,1705931243346,-250.0,0.00036418,111]
[312494906,1705931243367,-151.18685658,0.00036419,2]
[312494907,1705931243389,-320.0,0.00036419,2]
[312494908,1705931243409,-393.78,0.00036425,2]
[312494909,1705931243431,-1000.0,0.00036489,2]
[312494910,1705931243453,-166.58,0.00036534,2]
[312494911,1705931243476,-155.76,0.00036555,2]
[312494912,1705931243497,-250.0,0.00036555,2]
[312494913,1705931243519,-2000.0,0.00036555,2]
[312494914,1705931243543,-193.44310588,0.00036578,6]
[312494915,1705931243567,-151.18685658,0.00036617,2]
[312494916,1705931243590,-155.25,0.00036674,2]
[312494917,1705931243614,-754.13,0.00036755,2]
[312494918,1705931243637,-151.18685658,0.00036814,2]
[312494919,1705931243660,-208.48626913,0.00036901,14]
[312494920,1705931243691,-212.51,0.00036901,2]
[312494921,1705931243715,-669.01240215,0.00037,7]
[312494922,1705931243741,-151.18685658,0.00037012,2]
[312494923,1705931243768,-151.18685658,0.00037209,2]
[312494924,1705931243792,-500.0,0.000373,2]
[312494925,1705931243814,-12329.53,0.00037304,2]
[312494926,1705931243837,-2896.06,0.0003732,2]
[312494927,1705931243860,-151.18685658,0.00037406,2]
[312494928,1705931243884,-151.18685658,0.00037604,2]
[312494929,1705931243906,-829.81,0.00037611,2]
[312494930,1705931243933,-155.25,0.0003763,2]
[312494931,1705931243955,-1090.22436915,0.00037722,3]
[312494932,1705931243976,-1538.78853566,0.00037722,3]
[312494933,1705931243998,-151.18685658,0.00037801,2]
[312494934,1705931244020,-161.43,0.00037903,2]
[312494935,1705931244045,-151.18685658,0.00037999,2]
[312494936,1705931244068,-351.02,0.000381,2]
[312494937,1705931244090,-257.14,0.000381,30]
[312494938,1705931244112,-267.33128,0.000381,2]
[312494939,1705931244141,-151.18685658,0.00038196,2]
[312494940,1705931244162,-449.63,0.00038237,30]
[312494941,1705931244532,-904.7916,0.00038392,2]
[312494942,1705931244553,-151.18685658,0.00038394,2]
[312494943,1705931244573,-1873.07586103,0.00038442,8]
[312494944,1705931244592,-215.35384188,0.0003845,2]
[312494945,1705931244611,-186.41515541,0.00038469,4]
[312494946,1705931244635,-1830.0899859,0.00038487,4]
[312494947,1705931244655,-496.09520811,0.00038488,28]
[312494948,1705931244677,-338.0945803,0.00038488,10]
[312494949,1705931244697,-2920.39443948,0.00038488,4]
[312494950,1705931244718,-2143.98939105,0.00038488,4]
[312494951,1705931244738,-2138.69674334,0.00038488,4]
[312494952,1705931244759,-156.59716143,0.00038488,4]
[312494953,1705931244779,-526.14369271,0.00038488,4]
[312494954,1705931244800,-156.06185786,0.00038488,4]
[312494955,1705931244820,-301.15108564,0.00038488,4]
[312494956,1705931244841,-156.52802065,0.00038488,4]
[312494957,1705931244861,-711.49718173,0.00038488,4]
[312494958,1705931244882,-765.15731892,0.00038488,2]
[312494959,1705931244903,-517.34489861,0.00038488,4]
[312494960,1705931244925,-156.18814208,0.00038488,4]
[312494961,1705931244945,-155.0,0.00038488,4]
[312494962,1705931244964,-1342.68854386,0.00038488,4]
[312494963,1705931244984,-161.56475026,0.00038488,4]
[312494964,1705931245005,-215.60720017,0.00038488,4]
[312494965,1705931245026,-419.08132681,0.00038488,4]
[312494966,1705931245048,-3928.82337372,0.00038488,2]
[312494967,1705931245068,-888.99348604,0.00038488,2]
[312494968,1705931245088,-1153.75350663,0.00038488,4]
[312494969,1705931245109,-315.7759354,0.00038488,4]
[312494970,1705931245133,-156.50854864,0.00038488,4]
[312494971,1705931245153,-155.37183511,0.00038488,4]
[312494972,1705931245174,-318.525335,0.00038488,2]
[312494973,1705931245196,-1126.24697237,0.00038488,2]
[312494974,1705931245216,-4385.86552858,0.00038488,4]
[312494975,1705931245236,-156.04897416,0.00038488,4]
[312494976,1705931245255,-272.33856688,0.00038488,4]
[312494977,1705931245275,-939.56400894,0.00038488,4]
[312494978,1705931245294,-162.74561276,0.00038488,4]
[312494979,1705931245316,-29828.87706259,0.00038488,2]
[312494980,1705931245335,-2619.24962995,0.00038488,2]
[312494981,1705931245355,-162.48912958,0.00038488,4]
[312494982,1705931245375,-283.40650586,0.00038488,4]
[312494983,1705931245394,-244.64133608,0.00038489,4]
[312494984,1705931245413,-300.62032364,0.00038489,4]
[312494985,1705931245439,-16276.19342119,0.00038489,4]
[312494986,1705931245459,-4716.4900752,0.0003849,4]
[312494987,1705931250113,-26607.4755937,0.0003849,4]
[312494988,1705931250134,-226.11786442,0.00038491,4]
[312494989,1705931250153,-16642.66418103,0.00038491,4]
[312494990,1705931250174,-27892.48773667,0.00038492,15]
[312494991,1705931250194,-19992.8096087,0.00038492,14]
[312494992,1705931250220,-1570.34548354,0.00038492,14]
[312495001,1705931355136,-155.0,0.00036998,2]
[312495002,1705931355158,-1000.0,0.00036999,4]
[312495003,1705931355179,-478.64166408,0.00037,7]
[312495004,1705931355198,-1396.77090018,0.00037627,2]
[312495005,1705931355219,-46.87273574,0.000377,2]
[312495039,1705931432061,-1000.0,0.00037626,4]
[312495040,1705931432071,-279.0,0.00037627,120]
[312495041,1705931432081,-324.4017795,0.000377,2]
[312495042,1705931432113,-555.3436669,0.000377,2]
[312495043,1705931432125,-1486.76181786,0.000377,2]
[312495044,1705931432134,-250.0,0.00037902,111]
[312495045,1705931432144,-151.18685658,0.00038066,2]
[312495046,1705931432154,-155.25,0.00038166,2]
[312495047,1705931432165,-15000.0,0.000384,4]
[312495049,1705931432175,-1000.0,0.00038413,30]
[312495052,1705931432184,-150.69709911,0.00038454,2]
[312495054,1705931432194,-158.49958175,0.0003849,4]
[312495057,1705931432204,-155.0,0.0003849,2]
[312495060,1705931432213,-263.62222566,0.00038491,4]
[312495062,1705931432222,-500.0,0.00038491,2]
[312495064,1705931432231,-4489.28897026,0.00038491,30]
[312495066,1705931432240,-177.88199159,0.00038492,28]
[312495068,1705931432250,-31594.96669529,0.00038492,14]
[312495071,1705931432271,-275.2252479,0.00038492,14]
[312495073,1705931432282,-343.94,0.00038492,14]
[312495077,1705931432310,-5914.44730217,0.00038492,14]
[312495079,1705931432320,-4426.68163267,0.000385,7]
[312495081,1705931432329,-27878.82112074,0.00038542,14]
[312495083,1705931432338,-1393.94105604,0.00038542,11]
[312495085,1705931432347,-187.85294616,0.00038577,28]
[312495087,1705931432356,-53403.20976921,0.00038577,14]
[312495089,1705931432365,-11220.64272562,0.00038593,14]
[312495091,1705931432375,-150.0,0.00038658,2]
[312495093,1705931432384,-500.0,0.000387,14]
[312495095,1705931432393,-1000.0,0.0003872,30]
[312495097,1705931432402,-1000.0,0.00038764,30]
[312495099,1705931432411,-11534.71415347,0.000388,30]
[312495101,1705931432420,-1000.0,0.000388,14]
[312495103,1705931432429,-1500.0,0.000389,14]
[312495105,1705931432438,-1638.94137841,0.00038929,9]
[312495107,1705931432448,-284.12022017,0.00038949,2]
[312495109,1705931432457,-152.1492143,0.00038949,2]
[312495111,1705931432466,-5000.0,0.00038949,3]
[312495113,1705931432475,-829.81,0.00038953,2]
[312495115,1705931432485,-186.87447347,0.00038959,12]
[312495117,1705931432493,-33109.84798014,0.0003897,2]
[312495119,1705931432505,-8309.77357277,0.0003897,2]
[312495121,1705931432514,-1428.35082515,0.00039,2]
[312495123,1705931432523,-217.16681884,0.00039,11]
[312495125,1705931432532,-15261.79245012,0.00039029,3]
[312495139,1705931437878,-87647.91432188,0.00039029,3]
[312495140,1705931437888,-185.21957908,0.00039029,28]
[312495141,1705931437897,-3041.49378779,0.00039065,12]
[312495142,1705931437906,-205819.413545,0.0003909,3]
[312495143,1705931437915,-55378.83524839,0.000391,7]
[312495144,1705931437989,-1232.35815655,0.000391,7]
[312495145,1705931438049,-288.41386898,0.000391,7]
[312495146,1705931438105,-363.61901928,0.000391,7]
[312495147,1705931438165,-249327.33030735,0.000391,7]
[312495148,1705931438174,-203983.30192027,0.000391,2]
[312495149,1705931438187,-1016.94337793,0.000391,2]
[312495397,1705931440400,-1424.40289611,0.000391,2]
[312495400,1705931440411,-1942.37721319,0.000391,2]
[312495402,1705931440422,-289.96267146,0.000391,2]
[312495407,1705931440458,-1312.748061,0.000391,2]
[312495414,1705931440520,-93596.70142046,0.000391,2]
[312495417,1705931440531,-720.54062004,0.000391,2]
[312495419,1705931440542,-1075.51440885,0.000391,2]
[312495422,1705931440558,-23871.47623088,0.000391,2]
[312495424,1705931440569,-699.65573577,0.000391,2]
[312495534,1705931441675,-70701.24632162,0.000391,2]
[312495536,1705931441685,-212.51,0.00039165,2]
[312495538,1705931441694,-201.205508,0.0003923,2]
[312495540,1705931441703,-213.321367,0.0003923,2]
[312495542,1705931441712,-3000.0,0.000393,25]
[312495544,1705931441722,-150.0,0.000393,11]
[312495546,1705931441732,-150.0,0.000393,14]
[312495548,1705931441741,-3058.498981,0.0003931,25]
[312495550,1705931441750,-150.0,0.00039734,2]
[312495552,1705931441759,-150.0,0.00039734,2]
[312495554,1705931441768,-150.0,0.000398,7]
[312495556,1705931441778,-11351.92311653,0.00039865,2]
[312495558,1705931441787,-151.18685658,0.00039983,2]
[312495560,1705931441796,-204.4,0.00039999,2]
[312495562,1705931441806,-204.4,0.00039999,2]
[312495564,1705931441815,-100000.0,0.0004,30]
[312495566,1705931441825,-1082.91265361,0.0004,10]
[312495568,1705931441834,-171.92153851,0.0004,4]
[312495570,1705931441844,-2015.32077562,0.0004,20]
[312495572,1705931441853,-1549.76737359,0.0004,30]
[312495574,1705931441862,-255.0,0.0004,12]
[312495576,1705931441872,-500.0,0.0004,2]
[312495578,1705931441882,-255.0,0.0004,12]
[312495581,1705931441891,-255.0,0.0004,12]
[312495583,1705931441901,-255.0,0.0004,12]
[312495585,1705931441911,-255.0,0.0004,12]
[312495586,1705931441920,-255.0,0.0004,12]
[312495587,1705931441929,-255.0,0.0004,12]
[312495588,1705931441938,-150.0,0.0004,15]
[312495589,1705931441947,-829.81,0.00040295,2]
[312495591,1705931441957,-150.0,0.000403,12]
[312495592,1705931441966,-102909.706772,0.0004039,5]
[312495593,1705931441976,-30921.92093144,0.000404,2]
[312495594,1705931441992,-1453.92609093,0.000404,2]
[312495630,1705931443227,-325.83395407,0.000404,2]
[312495631,1705931443241,-1334.40390831,0.000404,2]
[312495632,1705931443363,-1289.74609169,0.000404,2]
[312495633,1705931443377,-19147.77553553,0.000404,2]
[312495840,1705931446120,-4191.66156577,0.000404,2]
[312495841,1705931446263,-2052.05,0.000404,2]
[312495842,1705931446276,-102138.08956972,0.000404,2]
[312495843,1705931446286,-250.18735462,0.000404,2]
[312495844,1705931446296,-1046.03357828,0.000404,2]
[312495845,1705931446307,-170.15365364,0.000404,2]
[312495846,1705931446317,-744.57265817,0.000404,2]
[312495847,1705931446327,-538.66000648,0.000404,2]
[312495848,1705931446337,-40665.1719729,0.000405,2]
[312495849,1705931446346,-3041.49378775,0.00040521,14]
[312495850,1705931446356,-4911.09259311,0.0004057,2]
[312495851,1705931446365,-267.33129,0.000406,5]
[312495852,1705931446375,-6847.12647988,0.0004068,2]
[312495853,1705931446385,-320.0,0.00040972,2]
[312495854,1705931446394,-88341.40869421,0.0004099,6]
[312495855,1705931446406,-4841.25948889,0.0004099,6]
[312495858,1705931491365,-60000.0,0.00023,2]
[312495859,1705931492857,619.19971926,0.00022,2]
[312495862,1705931506508,-1000.0,0.00023,2]
[312495863,1705931506899,-1000.0,0.00023,2]
[312495864,1705931507292,-1000.0,0.00023,2]
[312495865,1705931507646,-1000.0,0.00023,2]
[312495866,1705931508104,-1000.0,0.00023,2]
[312495867,1705931508369,-1000.0,0.00023,2]
[312495874,1705931692039,-630.3066843,0.00022078,2]
[312495875,1705931692061,-2949.31540149,0.00022831,2]
[312495876,1705931692083,-4639.84031702,0.00022831,2]
[312495877,1705931692104,-1785.38962774,0.00022832,2]
[312495878,1705931692128,-419.05406593,0.00022987,2]
[312495879,1705931692149,-542.93511757,0.00022996,2]
[312495880,1705931692170,-156.58316391,0.00022996,2]
[312495881,1705931692194,-345.90094396,0.00022996,2]
[312495882,1705931692215,-157.13740788,0.00022996,2]
[312495883,1705931692237,-467.67250831,0.00022996,2]
[312495884,1705931692262,-155.65924392,0.00022996,2]
[312495885,1705931692283,-2750.20551797,0.00022996,2]
[312496138,1705932420578,-157.37448702,0.00022895,2]
[312496139,1705932420610,-415.6688555,0.00022995,2]
[312496140,1705932420641,-2942.12211208,0.00022995,2]
[312496141,1705932420673,-1561.40692181,0.00022995,2]
[312496142,1705932420706,-17415.59881745,0.00022997,2]
[312496143,1705932420905,-5015.65761228,0.00022997,2]
[312496146,1705932446318,-155.84386628,0.00022997,2]
[312496147,1705932446339,-175.41364482,0.00022997,2]
[312496148,1705932446359,-386.16149821,0.00022998,2]
[312496149,1705932446379,-758.33044579,0.00022998,2]
[312496150,1705932446399,-155.0,0.00022998,2]
[312496151,1705932446419,-419.03655905,0.00022998,2]
[312496152,1705932446440,-529.15035393,0.00022998,2]
[312496153,1705932446460,-199.80077813,0.00022998,2]
[312496154,1705932446484,-207.57887739,0.00022998,2]
[312496155,1705932446505,-348.98382831,0.00022998,2]
[312496156,1705932446527,-182.39401206,0.00022998,2]
[312496157,1705932446548,-360.36079401,0.00022998,2]
[312496158,1705932446567,-3022.43755205,0.00022998,2]
[312496159,1705932446587,-327.84761538,0.00022998,2]
[312496160,1705932446607,-10486.82282849,0.00022998,2]
[312496161,1705932446626,-2619.24962995,0.00022998,2]
[312496162,1705932446645,-279.24625351,0.00022998,2]
[312496163,1705932446665,-558.24691169,0.00022998,2]
[312496164,1705932446685,-1581.2849475,0.00022998,2]
[312496165,1705932446705,-1209.9737523,0.00022998,2]
[312496166,1705932446724,-204.3370281,0.00022998,2]
[312496167,1705932446744,-696.50758074,0.00022998,2]
[312496168,1705932446765,-767.5348565,0.00022998,2]
[312496169,1705932446785,-156.89752444,0.00022998,2]
[312496170,1705932446805,-260.68258526,0.00022998,2]
[312496171,1705932446825,-12907.26588106,0.00022998,2]
[312496172,1705932446847,-248.66279264,0.00022999,2]
[312496173,1705932446867,-1708.71966275,0.00022999,2]
[312496174,1705932446886,-36592.82701086,0.00022999,2]
[312496175,1705932446907,-45885.57639597,0.00023,2]
[312496176,1705932446926,-610.1887134,0.00023,2]
[312496177,1705932446946,-3196.28243404,0.00023,2]
[312496178,1705932446966,-239.30699342,0.00023,2]
[312496179,1705932446986,-157.37448696,0.00025123,2]
[312496180,1705932447006,-157.37448696,0.00027351,2]
[312496181,1705932447030,-162.77,0.00027397,2]
[312496182,1705932447051,-162.19,0.00027397,2]
[312496183,1705932447071,-157.37448696,0.00029579,2]
[312496184,1705932447091,-155.0,0.0003,2]
[312496185,1705932447113,-162.19,0.00030822,2]
[312496186,1705932447139,-157.37448696,0.00031807,2]
[312496187,1705932447159,-155.0,0.00032,2]
[312496188,1705932447179,-305.35767525,0.000335,4]
[312496189,1705932447200,-868.91,0.00033862,2]
[312496190,1705932447219,-800.0,0.00033945,2]
[312496191,1705932447239,-499.99,0.00033945,2]
[312496192,1705932447258,-547.56,0.00033945,2]
[312496193,1705932447277,-1770.58,0.00033959,2]
[312496194,1705932447296,-3544.94,0.00033959,2]
[312496196,1705932447317,-216.76,0.00033959,2]
[312496198,1705932447336,-800.0,0.00033973,2]
[312496200,1705932447355,-150.99,0.00033973,2]
[312496202,1705932447375,-1000.0,0.00034,4]
[312496204,1705932447400,-500.0,0.00034,2]
[312496206,1705932447419,-250.0,0.00034018,2]
[312496208,1705932447439,-165.95,0.00034028,15]
[312496210,1705932447459,-157.37448696,0.00034035,2]
[312496211,1705932447479,-250.0,0.00034096,2]
[312496213,1705932447504,-162.19,0.00034247,2]
[312496214,1705932447522,-472.11,0.00034361,2]
[312496215,1705932447542,-203.35,0.00034809,2]
[312496216,1705932447561,-310.44075973,0.0003498,14]
[312496217,1705932447581,-5249.40992153,0.00035124,2]
[312496218,1705932451104,-11468.63007847,0.00035124,2]
[312496219,1705932451123,-199.05,0.00035218,2]
[312496220,1705932451142,-658.64,0.00035319,2]
[312496221,1705932451161,-167.7,0.00035395,2]
[312496222,1705932451181,-328.15,0.00035484,2]
[312496223,1705932451201,-150.77273825,0.000357,2]
[312496224,1705932451222,-192.0,0.00035717,2]
[312496225,1705932451243,-3039.0,0.000358,3]
[312496226,1705932451262,-14023.0,0.000358,3]
[312496227,1705932451281,-212.27038805,0.00036,3]
[312496263,1705932632038,-155.0,0.00034387,2]
[312496264,1705932632048,-1000.0,0.00034387,4]
[312496265,1705932632057,-254.4,0.00034388,2]
[312496266,1705932632067,-2887.0,0.000357,3]
[312496267,1705932632076,-4025.59041137,0.00036,3]
[312496285,1705932632630,-762.13920058,0.00036,3]
[312496287,1705932632640,-1016.0,0.00036,6]
[312496289,1705932632649,-2011.15,0.00036109,2]
[312496291,1705932632658,-157.37448696,0.00036263,2]
[312496293,1705932632667,-526.91,0.00036274,2]
[312496295,1705932632676,-213.23,0.00036274,2]
[312496297,1705932632686,-1181.39402857,0.00036301,30]
[312496300,1705932632695,-167.7,0.00036317,2]
[312496302,1705932632706,-2574.22847577,0.00036578,6]
[312496304,1705932632715,-178.10539602,0.00036578,6]
[312496306,1705932632724,-178.10539601,0.00036578,6]
[312496308,1705932632733,-254.4,0.00036652,2]
[312496310,1705932632742,-500.0,0.000368,13]
[312496312,1705932632751,-1000.0,0.000369,13]
[312496314,1705932632760,-297.96543494,0.00036925,14]
[312496316,1705932632769,-3322.4571562,0.00036925,2]
[312496319,1705932632789,-1690.5686565,0.00036925,2]
[312496321,1705932632801,-1408.29903671,0.00036925,2]
[312496329,1705932632867,-30175.28165505,0.00036925,2]
[312496331,1705932632876,-154.3,0.00036951,2]
[312496333,1705932632886,-249.88307835,0.00037,2]
[312496335,1705932632895,-1000.0,0.00037,7]